Workbook

Sheet Total Cost of Program
A1: Organization Name | C1: The Teacher Foundation (Shraddha Trust)
A2: Project Name | C2: Turning Schools Around/ Whole School Transformation
A3: Donor Details | C3: Asha for Education (Stanford Chapter)
A4: Duration of the grant | C4: 2 years
A5: Grade | C5: 1st - 10th (mostly 1-7)
A6: Budget ( INR) | C6: =C34 -> 525714.8
A7: No. of Schools | C7: 3 schools
A8: Sr. No. | B8: Line Items | C8: Total per school | D8: Remarks
C10: INR
A11: 1 | B11: TRAINING COST
A12: a | B12: Teacher Training ( including Material, Conveyance etc)
A13: I | B13: Material Cost | C13: 33138 | D13: Materials for over 15 days of workshops subject tutorials, co planning sessions et( - worksheets , lesson plans, etc (assuming 25-30 tecahers per school)
A14: ii | B14: Conveyance Cost | C14: 19341 | D14: Conveyance to the school and back, assuming auto fares Rs 50 per trip, Rs 100 per day x approx 100 visits per year
A15: B | B15: Heads Training ( including Material, Conveyance, professional fee etc)
A16: I | B16: Material Cost | C16: 2268 | D16: Materials for HeadLAMP programme and school improvement framework - folders, handouts, etc (2-4 Heads, middlelevel leaders per school)
A17: ii | B17: Conveyance Cost | C17: 2142 | D17: Visits for HeadLAMP programme and headship support
A18: iii | B18: Professional fee | C18: 11340 | D18: 10 workshop sessions plus school visits to assist Head in development of school audit and implementation plan
A19: c | B19: Mentors/Coaches Training ( including Material, Conveyance etc)
A20: I | B20: Material Cost | C20: 604.8 | D20: Handouts, folders etc for 3days of workshops- 4 mentors per school
A21: ii | B21: Conveyance Cost | C21: 126 | D21: 10 visits per school @ 4 mentors per school, Rs 100 per visit
A22: d | B22: SALARIES FOR TRAINERS & PROJECT HEAD
A23: I | B23: TRAINERS ( 2.5 Trainers – 1 Trainer per 2 Schools & Specific Consultant when necessary) | C23: =28000*12*2/3 -> 224000 | D23: Initially computed as 1 trainer per 3 schools @ approx Rs 28,000 per month per trainer. That was found untenable, and was later revised to 1 trainer per 2 schools. This will one big revision in the budget in 2012
A24: ii | B24: PROJECT HEAD (Part Salary) | C24: 66000 | D24: Project Head shared across 20 schools @ Rs 55,000 per mth
B25: TOTAL TRAINING COST (1) | C25: =SUM(C13:C24) -> 358959.8
A26: 2 | B26: SCHOOL INFRASTRUCTURE INITIATIVE | C26: 50000 | D26: 1 significant, visible but low cost intervention in the school eg developing a vibrant library or resource center, depending upon the needs of the school
A27: 3 | B27: MEASUREMENT & EVALUATION | C27: 25000 | D27: 1. Baseline and endline assessment of students ( 2 classes eg class 3 and 5 in 2 subjects eg English and Maths) with comparisons with averages for all affordable schools studied; 2 rounds of teacher observations (pre and post)
A28: 4 | B28: TRAIN THE TRAINER | C28: =31500/5 -> 6300 | D28: spend onTTF train-the-trainer workshops spread across each trainer
A29: 5 | B29: MONITORING | C29: =35280/5 -> 7056 | D29: Supervision costs to monitor progress of the programme
A30: 6 | B30: YEAR END EVENT/RECOGNITION/AWARDS | C30: =0/5 -> 0
A31: 7 | B31: MANAGEMENT & CO ORDINATION EXPENSES | C31: =232177/5 -> 46435.4 | D31: costs of recruitment of 10 Affordable private schools, planning, hiring of staff, school relationships, management of the team
A32: 8 | B32: SUPPORT AND OTHER SERVICES | C32: =114818/5 -> 22963.6 | D32: rent, utilities, finance and admin, communication, audit, photocopying, stationery, etc
A33: 9 | B33: Contingency/ Misc. | C33: =45000/5 -> 9000
B34: TOTAL - 1 School for 2 years : | C34: =+C25+C26+C27+C28+C29+C30+C31+C32+C33 -> 525714.8
B36: Total for 3 schools for 2 years (if funding 100%) | C36: =C34*3 -> 1577144.4
B37: Total for 3 schools per year (if funding 100%) | C37: =C36/2 -> 788572.2

Sheet Cost to Asha Stanford 2011
H1: 1USD = x INR | I1: 1USD = x INR
B2: Cost per school (over 2 years) (INR) | C2: Contribution BY the school over 2 years (INR) | D2: Remainder per school over 2 years (INR) | F2: Remainder over 2 years for 3 schools (INR) | G2: Remainder per year for 3 schools (assuming 50:50 split) (INR) | H2: 55 | I2: 44 | J2: Asha Stanford commitment met by private donation (in USD)
A3: Revised Budget | B3: 637715 | C3: 150000 | D3: =B3-C3 -> 487715 | F3: =D3*3 -> 1463145 | G3: =F3/2 -> 731572.5 | H3: =G3/$H$2 -> 13301.31818 | I3: =G3/$I$2 -> 16626.64773 | J3: 6000
A4: Budget (2011) | B4: 525715 | C4: 150000 | D4: =B4-C4 -> 375715 | F4: =D4*3 -> 1127145 | G4: =F4/2 -> 563572.5 | H4: =G4/$H$2 -> 10246.77273 | I4: =G4/$I$2 -> 12808.46591 | J4: 6000
